[Event "ETCC Open 2023"]
[Site "Budva"]
[Date "2023.11.11"]
[Round "1.12"]
[White "Sahidi, Samir"]
[Black "Hauge, Lars Oskar"]
[Result "1/2-1/2"]
[ECO "D63"]
[WhiteElo "2464"]
[BlackElo "2498"]
[Annotator "RC"]
[PlyCount "85"]
[EventDate "2023.11.10"]
[EventType "team-tourn"]
[EventCountry "MNE"]
[SourceTitle "playchess.com"]
[Source "ChessBase"]
[SourceQuality "1"]
[WhiteTeam "Slovakia"]
[BlackTeam "Norway"]
[WhiteTeamCountry "SVK"]
[BlackTeamCountry "NOR"]
[TimeControl "40/5400+30:1800+30"]

1. d4 {[%emt 0:00:04]} Nf6 {[%emt 0:00:05]} 2. c4 {[%emt 0:00:10]} e6 {[%emt 0:00:05]} 3. Nf3 {[%emt 0:00:19]} d5 {[%emt 0:00:07]} 4. Nc3 {[%emt 0:00:10]} Be7 {[%emt 0:00:11]} 5. Bg5 {[%emt 0:00:13]} O-O {[%emt 0:02:59]} 6. e3 {[%emt 0:00:27]} Nbd7 {[%emt 0:05:03]} 7. Rc1 {[%emt 0:15:09]} h6 {[%emt 0:00:31]} 8. Bh4 {[%emt 0:00:17]} c5 {[%emt 0:04:53]} 9. dxc5 {[%emt 0:15:03]} dxc4 {[%emt 0:03:43]} 10. Bxc4 {[%emt 0:04:28]} Nxc5 {[%emt 0:03:19]} 11. O-O {[%emt 0:01:04]} a6 {[%emt 0:06:53]} 12. Nd4 {[%emt 0:09:25]} Nfe4 {[%emt 0:13:03]} 13. Bxe7 {[%emt 0:05:51]} Qxe7 {[%emt 0:02:17]} 14. Nxe4 {[%emt 0:01:39]} Nxe4 {[%emt 0:00:05]} 15. Qc2 {[%emt 0:02:44]} Nd6 {[%emt 0:03:02]} 16. Be2 {[%emt 0:01:18]} Bd7 {[%emt 0:03:54]} 17. Qc5 {[%emt 0:06:19]} Rfc8 {[%emt 0:04:30]} 18. Qb6 {[%emt 0:07:50]} Rxc1 {[%emt 0:10:15]} 19. Rxc1 {[%emt 0:00:12]} Rc8 {[%emt 0:00:07]} 20. Rd1 {[%emt 0:07:21]} Be8 {[%emt 0:13:03]} 21. Bf3 {[%emt 0:04:54]} e5 {[%emt 0:08:57]} 22. Ne2 {[%emt 0:06:22]} Bc6 {[%emt 0:02:13]} 23. Bxc6 {[%emt 0:03:06]} Rxc6 {[%emt 0:00:07]} 24. Qb4 {[%emt 0:00:33]} Qe6 {[%emt 0:04:46]} 25. Nc3 {[%emt 0:00:30]} Kh7 {[%emt 0:00:24]} 26. h3 {[%emt 0:00:40]} b5 {[%emt 0:01:34]} 27. b3 {[%emt 0:03:45]} Ne8 {[%emt 0:02:43]} 28. Nd5 {[%emt 0:02:51]} Nf6 {[%emt 0:01:54]} 29. Nxf6+ {[%emt 0:01:01]} Qxf6 {[%emt 0:00:05]} 30. Qe4+ {[%emt 0:00:31]} g6 {[%emt 0:00:19]} 31. Rd2 {[%emt 0:00:52]} Rd6 {[%emt 0:00:58]} 32. Rc2 {[%emt 0:00:33]} Qf5 {[%emt 0:02:07]} 33. Qxf5 {[%emt 0:00:17]} gxf5 {[%emt 0:00:04]} 34. Kf1 {[%emt 0:00:45]} Kg7 {[%emt 0:01:36]} 35. Ke2 {[%emt 0:00:19]} Kf6 {[%emt 0:00:34]} 36. Rc8 {[%emt 0:00:15]} Ke7 {[%emt 0:00:58]} 37. Rh8 {[%emt 0:00:47]} Rc6 {[%emt 0:00:12]} 38. Kd2 {[%emt 0:00:28]} Rd6+ {[%emt 0:00:09]} 39. Kc3 {[%emt 0:00:25]} Rc6+ {[%emt 0:00:27]} 40. Kd3 {[%emt 0:00:33]} Rd6+ {[%emt 0:00:32]} 41. Kc3 {[%emt 0:04:42]} Rc6+ {[%emt 0:00:56]} 42. Kb2 {[%emt 0:14:50]} Rd6 {[%emt 0:00:09]} 43. Kc3 {[%emt 0:03:30]} 1/2-1/2

[Event "ETCC Open 2023"]
[Site "Budva"]
[Date "2023.11.11"]
[Round "1.13"]
[White "Deac, Bogdan-Daniel"]
[Black "Dragnev, Valentin"]
[Result "1/2-1/2"]
[ECO "D02"]
[WhiteElo "2700"]
[BlackElo "2589"]
[Annotator "TA"]
[PlyCount "194"]
[EventDate "2023.11.10"]
[EventType "team-tourn"]
[EventCountry "MNE"]
[SourceTitle "playchess.com"]
[Source "ChessBase"]
[SourceQuality "1"]
[WhiteTeam "Romania"]
[BlackTeam "Austria"]
[WhiteTeamCountry "ROU"]
[BlackTeamCountry "AUT"]
[TimeControl "40/5400+30:1800+30"]

{[%evp 20,193,21,-10,0,0,0,3,3,0,16,4,37,0,0,0,0,0,0,0,0,0,0,0,0,0,-18,-35,-20,-22,-39,-30,-36,-30,-40,-28,-32,-44,-26,-37,-20,-69,-64,-51,-39,-44,-31,-36,-30,-90,-90,-90,-90,-90,-90,-107,-107,-134,-43,-27,-19,-77,-72,-81,-18,-29,-33,-28,-34,-35,-43,-77,-76,-78,-39,-80,-78,-78,-81,-78,-79,-89,-79,-81,-83,-83,-83,-83,-83,-83,-72,-72,-72,-76,0,-69,0,-76,-71,-71,-71,-71,-22,-54,0,-71,-71,-70,-70,-69,-69,-69,-69,-76,-76,-76,-76,-76,-61,-76,-76,-76,-68,-69,0,-76,0,-75,-36,-40,-39,-76,-76,-85,-80,-116,-116,-116,-116,-149,-32,-32,-32,-32,-32,-32,-32,-32,-32,-32,0,-32,-32,-32,-32,-32,-32,-32,-32,-32,-8,-8,-8,-8,-8,-8,-8,-8,0,-8,-8,-8,0,0,0,0]} 1. Nf3 {[%emt 0:00:04]} Nf6 {[%emt 0:00:19]} 2. g3 {[%emt 0:01:37]} e6 {[%emt 0:01:30]} 3. Bg2 {[%emt 0:01:13]} Be7 {[%emt 0:00:17]} 4. O-O {[%emt 0:08:53]} O-O {[%emt 0:00:36]} 5. d4 {[%emt 0:02:32]} d5 {[%emt 0:00:24]} 6. a3 {[%emt 0:00:30]} b6 {[%emt 0:03:53]} 7. c4 {[%emt 0:02:34]} c6 {[%emt 0:03:05]} 8. Qc2 {[%emt 0:18:02]} Bb7 {[%emt 0:07:50]} 9. Rd1 {[%emt 0:12:07]} Nbd7 {[%emt 0:02:06]} 10. Nc3 {[%emt 0:01:14]} h6 {[%emt 0:17:52]} 11. Nd2 {[%emt 0:03:44]} Rc8 {[%emt 0:05:06]} 12. b3 {[%emt 0:09:13]} c5 {[%emt 0:06:21]} 13. dxc5 {[%emt 0:01:12]} Bxc5 {[%emt 0:00:26]} 14. e3 {[%emt 0:01:27]} Qc7 {[%emt 0:09:07]} (14... Be7 $5 {[%cal Rd8c7]}) 15. cxd5 {[%emt 0:07:20]} exd5 {[%emt 0:02:10]} 16. Bb2 {[%emt 0:02:26]} (16. Nb5 $5 {[%cal Rb5c7]} Qb8 17. Qf5 $11) 16... d4 {[%emt 0:04:14]} 17. Nb5 {[%emt 0:02:26]} Qb8 {[%emt 0:00:18]} 18. Bxb7 {[%emt 0:08:20]} (18. Nxd4 $2 {perishes.} Bxd4 19. Nc4 Bxg2 20. Kxg2 Qb7+ 21. f3 Bxe3 $19) (18. exd4 {feels hotter.} Bxd4 19. Nc4 Bxg2 20. Kxg2 Be5 21. Qb1) 18... Qxb7 {[%emt 0:03:22]} 19. exd4 {[%emt 0:00:12]} Bxd4 {[%emt 0:00:21]} 20. Nc4 {[%emt 0:00:18]} Bxb2 {[%emt 0:00:23]} 21. Qxb2 {[%emt 0:00:54]} Rc5 {[%emt 0:00:22]} 22. a4 {[%emt 0:03:06]} Ng4 {[%emt 0:06:31]} 23. Qe2 {[%emt 0:05:35]} Nde5 {[%emt 0:06:30]} 24. Nxe5 {[%emt 0:02:38]} Nxe5 {[%emt 0:00:11]} 25. Nd6 {[%emt 0:02:23]} Nf3+ {[%emt 0:07:09]} 26. Kh1 {[%emt 0:00:02]} Rh5 {[%emt 0:00:57]} 27. h4 {[%emt 0:00:08]} Qa8 {[%emt 0:00:09]} 28. Qe4 {[%emt 0:02:00]} Qxe4 {[%emt 0:01:28]} 29. Nxe4 {[%emt 0:00:10]} Nxh4 {[%emt 0:00:07]} 30. Rd7 {[%emt 0:01:33]} (30. Kg1 $11 {is more appropriate.}) 30... Re8 {[%emt 0:06:48]} 31. Nc3 {[%emt 0:00:14]} Ng6+ {[%emt 0:01:58]} 32. Kg2 {[%emt 0:00:07]} Rc5 {[%emt 0:00:11]} 33. Nb5 {[%emt 0:01:46]} a6 {[%emt 0:00:20]} 34. Nc7 {[%emt 0:00:40]} (34. Nd4 $1 $11) 34... Re2 $17 {[%emt 0:03:49]} 35. Nxa6 {[%emt 0:00:22]} Rcc2 {[%emt 0:00:02]} 36. Rf1 {[%emt 0:00:20]} Ne5 {[%emt 0:00:11]} 37. Rd8+ {[%emt 0:01:05]} Kh7 {[%emt 0:00:02]} 38. Re8 {[%emt 0:00:08]} Nd3 {[%emt 0:01:05]} ({Black should try} 38... Kg6 $17 39. Nb4 Rcd2) 39. Rxe2 $15 {[%emt 0:00:48]} Rxe2 {[%emt 0:00:02]} 40. Kf3 {[%emt 0:00:36]} (40. Nb8 $11) 40... Rb2 $17 {[%emt 0:01:17]} 41. b4 {[%emt 0:30:12]} Ra2 {[%emt 0:09:15]} (41... Nxb4 $17 42. Nxb4 Rb3+ 43. Nd3 Rxd3+ 44. Ke2 Rb3) 42. Ke3 {[%emt 0:00:00]} Nb2 {[%emt 0:01:10]} 43. Nc7 {[%emt 0:00:00]} Rxa4 {[%emt 0:08:28]} 44. Nd5 {[%emt 0:00:00]} Ra3+ {[%emt 0:00:12]} 45. Ke2 {[%emt 0:00:00]} Nc4 {[%emt 0:00:52]} 46. Rc1 {[%emt 0:00:00]} Ra2+ {[%emt 0:02:02]} 47. Ke1 {[%emt 0:00:00]} b5 {[%emt 0:13:12]} 48. Nc3 {[%emt 0:00:00]} Rb2 {[%emt 0:00:00]} 49. Nxb5 {[%emt 0:00:00]} Rxb4 {[%emt 0:00:00]} 50. Rc3 {[%emt 0:00:00]} Rb1+ {[%emt 0:00:00]} 51. Ke2 {[%emt 0:00:00]} Rb2+ {[%emt 0:00:00]} 52. Ke1 {[%emt 0:00:00]} Ne5 {[%emt 0:00:00]} 53. Nd6 {[%emt 0:00:56]} Rb6 {[%emt 0:00:00]} 54. Nf5 {[%emt 0:00:25]} Rb1+ {[%emt 0:00:00]} 55. Ke2 {[%emt 0:00:10]} Rb2+ {[%emt 0:00:00]} 56. Ke1 {[%emt 0:01:43]} Rb1+ {[%emt 0:00:00]} 57. Ke2 {[%emt 0:00:12]} Rb2+ {[%emt 0:00:00]} 58. Ke1 $1 {[%emt 0:00:29]} g6 {[%emt 0:04:05]} 59. f4 {[%emt 0:04:40]} Ng4 {[%emt 0:00:58]} 60. Nd6 {[%emt 0:00:08]} Rb1+ {[%emt 0:00:18]} ({Better is} 60... f5 $17) 61. Ke2 {[%emt 0:00:19]} Rb2+ {[%emt 0:00:04]} 62. Ke1 $1 {[%emt 0:00:10]} f5 {[%emt 0:01:00]} 63. Rc7+ {[%emt 0:01:34]} Kg8 {[%emt 0:00:01]} 64. Nc8 {[%emt 0:00:57]} Kf8 {[%emt 0:00:46]} 65. Ne7 {[%emt 0:00:34]} Rb6 {[%emt 0:00:05]} 66. Kf1 {[%emt 0:00:29]} Re6 {[%emt 0:01:03]} 67. Nd5 {[%emt 0:00:29]} Rd6 {[%emt 0:00:08]} 68. Nb4 {[%emt 0:00:33]} Rd2 {[%emt 0:01:17]} 69. Rc8+ {[%emt 0:00:29]} Kf7 {[%emt 0:00:03]} 70. Rc7+ {[%emt 0:00:28]} Ke8 {[%emt 0:00:23]} 71. Rc6 {[%emt 0:00:32]} Kf7 {[%emt 0:00:52]} 72. Rc7+ {[%emt 0:00:22]} Ke8 {[%emt 0:00:25]} 73. Rc6 {[%emt 0:00:09]} g5 {[%emt 0:00:31]} 74. fxg5 {[%emt 0:01:00]} hxg5 {[%emt 0:00:01]} 75. Rc3 {[%emt 0:00:29]} Kf7 {[%emt 0:00:26]} 76. Nd3 {[%emt 0:00:29]} Kg6 {[%emt 0:01:01]} 77. Ne1 {[%emt 0:00:31]} Kh5 {[%emt 0:00:48]} 78. Nf3 {[%emt 0:01:02]} Ra2 {[%emt 0:00:38]} 79. Rb3 {[%emt 0:00:00]} Nh2+ {[%emt 0:00:33]} (79... Nf6 $17 {White must now prevent ...Ne4.} 80. Re3 Ne4) 80. Nxh2 $15 {[%emt 0:00:05]} Rxh2 {[%emt 0:00:01]} 81. Rb4 {[%emt 0:00:12]} Ra2 {[%emt 0:00:30]} 82. Kg1 {[%emt 0:00:54]} Re2 {[%emt 0:00:12]} 83. Ra4 {[%emt 0:00:46]} Rb2 {[%emt 0:01:03]} 84. Rc4 {[%emt 0:00:17]} Re2 {[%emt 0:00:13]} 85. Ra4 {[%emt 0:00:04]} Re4 {[%emt 0:00:53]} 86. Ra2 $1 {[%emt 0:00:10]} Kg4 {[%emt 0:00:07]} 87. Kg2 {[%emt 0:00:01]} Rc4 {[%emt 0:00:09]} 88. Rb2 {[%emt 0:00:06]} Rc3 {[%emt 0:01:56]} 89. Rb4+ {[%emt 0:00:02]} f4 {[%emt 0:00:00]} 90. gxf4 {[%emt 0:00:03]} gxf4 {[%emt 0:00:00]} 91. Rb2 {[%emt 0:00:15]} Rg3+ {[%emt 0:00:00]} 92. Kf2 {[%emt 0:00:22]} Rd3 {[%emt 0:00:00]} 93. Kg2 {[%emt 0:00:26]} Rg3+ {[%emt 0:00:00]} 94. Kf2 {[%emt 0:00:06]} Rh3 {[%emt 0:00:00]} 95. Kg2 {[%emt 0:01:02]} f3+ {[%emt 0:00:00]} 96. Kg1 {[%emt 0:00:05]} Kg3 {[%emt 0:00:00]} 97. Rg2+ {[%emt 0:00:06]} fxg2 {[%emt 0:00:02]} 1/2-1/2

[Event "ETCC Open 2023"]
[Site "Budva"]
[Date "2023.11.11"]
[Round "1.14"]
[White "Ragger, Markus"]
[Black "Shevchenko, Kirill"]
[Result "1/2-1/2"]
[ECO "E92"]
[WhiteElo "2615"]
[BlackElo "2665"]
[Annotator "TA"]
[PlyCount "22"]
[EventDate "2023.11.10"]
[EventType "team-tourn"]
[EventCountry "MNE"]
[SourceTitle "playchess.com"]
[Source "ChessBase"]
[SourceQuality "1"]
[WhiteTeam "Austria"]
[BlackTeam "Romania"]
[WhiteTeamCountry "AUT"]
[BlackTeamCountry "ROU"]
[TimeControl "40/5400+30:1800+30"]

{[%evp 20,22,0,0,42]} 1. d4 {[%emt 0:00:03]} Nf6 {[%emt 0:00:06]} 2. c4 {[%emt 0:00:04]} g6 {[%emt 0:00:06]} 3. Nc3 {[%emt 0:00:05]} Bg7 {[%emt 0:00:03]} 4. e4 {[%emt 0:00:07]} d6 {[%emt 0:00:06]} 5. Nf3 {[%emt 0:00:07]} O-O {[%emt 0:00:08]} 6. Be2 {[%emt 0:00:03]} e5 {[%emt 0:00:14]} 7. O-O {[%emt 0:00:07]} h6 {[%emt 0:00:01] [#]} 8. Be3 $146 {[%emt 0:02:04]} ({Predecessor:} 8. dxe5 dxe5 9. Qxd8 Rxd8 10. Nxe5 Nxe4 11. Nxe4 Bxe5 12. Bxh6 Bxb2 13. Rab1 Bg7 14. Bg5 Re8 15. Bf3 Bf5 16. Rbe1 Nd7 17. Re3 Ne5 18. Nf6+ Bxf6 19. Bxf6 Nxf3+ 20. gxf3 {½-½ Bu,X (2690)-Sindarov,J (2658) Asian Games tt 2023 (5.6)}) 8... Ng4 {[%emt 0:00:06]} 9. Bc1 {[%emt 0:00:02]} Nf6 {[%emt 0:00:06]} 10. Be3 {[%emt 0:02:09] 10.d5 is setting a new trend.} Ng4 {[%emt 0:01:22]} 11. Bc1 {[%emt 0:00:06]} Nf6 {[%emt 0:03:56] A rather calm draw.  E92: King's Indian: Classical: 6 Be2 e5: 7 dxe5, 7 Be3 and Petrosian System without 7...Nbd7.} 1/2-1/2

[Event "ETCC Open 2023"]
[Site "Budva"]
[Date "2023.11.11"]
[Round "1.15"]
[White "Nisipeanu, Liviu-Dieter"]
[Black "Horvath, Dominik"]
[Result "1/2-1/2"]
[ECO "C67"]
[WhiteElo "2591"]
[BlackElo "2549"]
[Annotator "TA"]
[PlyCount "112"]
[EventDate "2023.11.10"]
[EventType "team-tourn"]
[EventCountry "MNE"]
[SourceTitle "playchess.com"]
[Source "ChessBase"]
[SourceQuality "1"]
[WhiteTeam "Romania"]
[BlackTeam "Austria"]
[WhiteTeamCountry "ROU"]
[BlackTeamCountry "AUT"]
[TimeControl "40/5400+30:1800+30"]

{[%evp 18,112,-19,-16,-15,-16,-2,-11,0,0,0,0,0,0,0,0,4,0,4,-8,0,-7,0,-38,-50,-53,-46,-51,-51,-56,-48,-89,-77,-83,0,-14,-14,-14,28,28,52,0,0,0,3,0,0,0,0,0,0,0,0,0,0,0,0,0,0,0,0,0,0,0,30,0,0,17,18,0,18,0,18,18,30,28,28,28,28,0,0,0,0,0,0,0,0,0,0,0,0,0,0,0,0,0,0]} 1. e4 {[%emt 0:00:03]} e5 {[%emt 0:00:26]} 2. Nf3 {[%emt 0:00:08]} Nc6 {[%emt 0:00:05]} 3. Bb5 {[%emt 0:00:09]} Nf6 {[%emt 0:00:08]} 4. O-O {[%emt 0:00:17]} Nxe4 {[%emt 0:00:04]} 5. d4 {[%emt 0:00:10]} Nd6 {[%emt 0:00:06]} 6. Bxc6 {[%emt 0:00:06]} dxc6 {[%emt 0:00:04]} 7. dxe5 {[%emt 0:00:07]} Nf5 {[%emt 0:00:06]} 8. Qe2 {[%emt 0:00:09]} Nd4 {[%emt 0:05:14]} 9. Nxd4 {[%emt 0:00:08]} Qxd4 {[%emt 0:00:04]} 10. h3 {[%emt 0:00:09] White is weak on the light squares} Be6 {[%emt 0:10:51] C67: Ruy Lopez: Berlin Defence: 4 0-0 Nxe4.} 11. Rd1 {[%emt 0:00:09]} Qc4 {[%emt 0:00:18]} 12. Rd3 {[%emt 0:00:07]} (12. Qxc4 {simplifies} Bxc4 13. Be3 Be6 14. f3) 12... Rd8 {[%emt 0:09:23]} 13. b3 {[%emt 0:00:23]} Qh4 {[%emt 0:00:24] [#]} 14. Nc3 $146 {[%emt 0:02:11]} ({Predecessor:} 14. Rxd8+ Qxd8 15. Be3 Be7 16. Nc3 O-O 17. Rd1 Qc8 18. f4 Rd8 19. Rf1 g6 20. Ne4 {½-½ Vachier Lagrave,M (2749)-Karjakin,S (2757) FIDE World Cup 2021 (5.3)}) 14... Rxd3 {[%emt 0:03:34]} 15. Qxd3 {[%emt 0:00:11]} Be7 {[%emt 0:00:09]} 16. Ne2 {[%emt 0:00:09]} Qh5 {[%emt 0:08:01]} 17. Bf4 {[%emt 0:00:36]} O-O {[%emt 0:06:36]} 18. Re1 {[%emt 0:28:50]} Rd8 {[%emt 0:01:18]} 19. Qc3 {[%emt 0:01:17]} Qf5 {[%emt 0:07:47]} 20. Bg3 {[%emt 0:16:22]} Qe4 {[%emt 0:07:09] Threatens to win with ...Bb4.} 21. Nf4 {[%emt 0:03:22]} Qb4 {[%emt 0:01:14]} 22. Qxb4 {[%emt 0:18:28]} Bxb4 {[%emt 0:00:06]} 23. Nxe6 {[%emt 0:06:35]} fxe6 $15 {[%emt 0:00:06][%mdl 4096] Endgame KRB-KRB} 24. Re3 {[%emt 0:22:24]} Rd1+ {[%emt 0:08:29]} 25. Kh2 {[%emt 0:00:00] [#]} Kf7 {[%emt 0:04:42]} (25... Rd2 $1 $17) 26. Rd3 {[%emt 0:00:00]} Rxd3 {[%emt 0:00:57]} 27. cxd3 $11 {[%emt 0:00:00] KB-KB} Bc5 {[%emt 0:09:35]} 28. Bh4 {[%emt 0:00:00]} h6 {[%emt 0:02:37]} 29. g4 {[%emt 0:00:00]} (29. f4 $14) 29... g5 {[%emt 0:00:14]} 30. Bg3 {[%emt 0:00:00]} Kg6 {[%emt 0:00:06]} 31. Kg2 {[%emt 0:00:00]} h5 {[%emt 0:00:21]} 32. Kf3 {[%emt 0:00:00]} a6 {[%emt 0:00:59]} 33. Ke2 {[%emt 0:00:00]} Bd4 {[%emt 0:00:21]} 34. Kf3 {[%emt 0:00:00]} Bc5 {[%emt 0:00:03]} 35. Ke2 {[%emt 0:01:03]} Bd4 {[%emt 0:00:03]} 36. f3 {[%emt 0:00:26]} Kh6 {[%emt 0:02:17]} 37. f4 {[%emt 0:02:25] Black must now prevent f5.} hxg4 {[%emt 0:01:13]} 38. hxg4 {[%emt 0:00:06] f5 would be deadly.} gxf4 {[%emt 0:00:27]} 39. Bxf4+ {[%emt 0:00:08]} Kg6 {[%emt 0:00:03]} 40. Kf3 {[%emt 0:00:07]} Bc5 {[%emt 0:02:11]} 41. Bd2 {[%emt 0:30:55]} Be7 {[%emt 0:30:18]} 42. Ba5 {[%emt 0:00:22]} b6 {[%emt 0:00:04]} 43. Bd2 {[%emt 0:00:22]} Bf8 {[%emt 0:02:21]} 44. Kg2 {[%emt 0:00:00]} Be7 {[%emt 0:00:00]} 45. Be1 {[%emt 0:00:00]} Bg5 {[%emt 0:00:00]} 46. Kh3 {[%emt 0:00:00]} Bf4 {[%emt 0:00:00]} 47. Bg3 {[%emt 0:00:00]} Bh6 {[%emt 0:00:00]} 48. a4 {[%emt 0:00:00]} Bf8 {[%emt 0:00:00] The position is equal.} 49. Kg2 {[%emt 0:00:00]} Be7 {[%emt 0:00:00] Wards off Bh4} 50. Kf3 {[%emt 0:00:00]} Kh6 {[%emt 0:00:00]} 51. Be1 {[%emt 0:00:00]} Kg6 {[%emt 0:00:00]} 52. Kg3 {[%emt 0:00:00]} Bf8 {[%emt 0:00:00]} 53. Kf3 {[%emt 0:00:00]} Be7 {[%emt 0:00:00] Prevents Bh4.} 54. Kg2 {[%emt 0:00:00]} Bg5 {[%emt 0:00:00]} 55. Bg3 {[%emt 0:00:00]} Be7 {[%emt 0:00:00]} 56. Kh3 {[%emt 0:00:00]} Bf8 {[%emt 0:00:00] Weighted Error Value: White=0.07 (flawless) /Black=0.06 (flawless)} 1/2-1/2

[Event "ETCC Open 2023"]
[Site "Budva"]
[Date "2023.11.11"]
[Round "1.16"]
[White "Blohberger, Felix"]
[Black "Lupulescu, Constantin"]
[Result "1/2-1/2"]
[ECO "E08"]
[WhiteElo "2513"]
[BlackElo "2582"]
[Annotator "TA"]
[PlyCount "74"]
[EventDate "2023.11.10"]
[EventType "team-tourn"]
[EventCountry "MNE"]
[SourceTitle "playchess.com"]
[Source "ChessBase"]
[SourceQuality "1"]
[WhiteTeam "Austria"]
[BlackTeam "Romania"]
[WhiteTeamCountry "AUT"]
[BlackTeamCountry "ROU"]
[TimeControl "40/5400+30:1800+30"]

{[%evp 17,74,2,22,17,25,20,41,20,29,29,18,0,0,0,0,0,0,-5,0,-8,11,0,12,15,15,15,20,16,12,4,8,15,15,12,16,4,20,20,20,0,4,0,20,18,22,22,22,22,22,22,22,14,14,14,16,0,14,0,21]} 1. d4 {[%emt 0:00:03]} Nf6 {[%emt 0:00:09]} 2. c4 {[%emt 0:00:03]} e6 {[%emt 0:00:05]} 3. Nf3 {[%emt 0:00:04]} d5 {[%emt 0:00:05]} 4. g3 {[%emt 0:00:02]} Bb4+ {[%emt 0:00:37]} 5. Bd2 {[%emt 0:00:09]} Be7 {[%emt 0:00:05]} 6. Bg2 {[%emt 0:00:09]} c6 {[%emt 0:00:12]} 7. Qc2 {[%emt 0:00:26]} Nbd7 {[%emt 0:00:14]} 8. O-O {[%emt 0:00:13]} O-O {[%emt 0:00:11]} 9. Bf4 {[%emt 0:00:17]} a5 {[%emt 0:09:43]} 10. h4 {[%emt 0:00:26] [#] E08: Closed Catalan: Main Line: 7 Qc2.} Nh5 $146 {[%emt 0:08:42]} ({Predecessor:} 10... a4 11. a3 h6 12. Nc3 dxc4 13. e4 b5 14. Rad1 Bb7 15. Bh3 c5 16. dxc5 Qc8 17. Bd6 Re8 {0-1 Abasov,N (2679)-Firouzja,A (2777) FIDE Grand Swiss 2023 (4)}) 11. Bg5 {[%emt 0:05:08]} b6 {[%emt 0:12:46]} 12. Nbd2 {[%emt 0:07:05] White is slightly better.} Nhf6 $1 {[%emt 0:12:35]} 13. e4 {[%emt 0:04:54]} h6 {[%emt 0:11:50]} 14. Bxf6 {[%emt 0:13:21] The position is equal.} Nxf6 {[%emt 0:01:24]} 15. e5 {[%emt 0:01:00]} Nd7 {[%emt 0:39:22]} 16. cxd5 {[%emt 0:01:11]} cxd5 {[%emt 0:00:00]} 17. Rfc1 {[%emt 0:00:33]} Ba6 {[%emt 0:00:00]} 18. Bf1 {[%emt 0:02:14]} Bxf1 {[%emt 0:00:00]} 19. Kxf1 {[%emt 0:00:50]} Qc8 {[%emt 0:00:00]} 20. Qd3 {[%emt 0:02:11]} Qb7 {[%emt 0:00:00]} 21. Rc2 {[%emt 0:01:38]} Rfc8 {[%emt 0:00:00]} 22. Rac1 {[%emt 0:00:29]} Bd8 {[%emt 0:00:00]} 23. Qb5 {[%emt 0:08:57]} Rxc2 {[%emt 0:00:00]} 24. Rxc2 {[%emt 0:00:06]} Rc8 {[%emt 0:00:00]} 25. Rxc8 {[%emt 0:09:20]} Qxc8 {[%emt 0:00:00]} 26. Kg2 {[%emt 0:03:40]} Kf8 {[%emt 0:00:00]} 27. Nb1 {[%emt 0:03:09]} Nb8 {[%emt 0:00:00][%cal Bd7b8,Bb8c6,Bc6b4][%mdl 32]} 28. Qd3 {[%emt 0:08:41]} Kg8 {[%emt 0:00:00] Prevents Qh7+.} 29. Nc3 {[%emt 0:00:19]} Nc6 {[%emt 0:00:00]} 30. h5 {[%emt 0:11:44]} Nb4 {[%emt 0:00:00]} 31. Qb5 {[%emt 0:02:04] [#] Strongly threatening Qe8+.} Qc6 {[%emt 0:00:00] Prevents Qe8+.} 32. Qe2 {[%emt 0:01:37] aiming for a3.} Qb7 {[%emt 0:00:00]} 33. a3 {[%emt 0:00:27]} Nc6 {[%emt 0:00:00]} 34. Qb5 {[%emt 0:02:33]} Kf8 {[%emt 0:00:00]} 35. Qd3 {[%emt 0:00:08]} Kg8 {[%emt 0:00:00]} 36. Qb5 {[%emt 0:04:13]} Kf8 {[%emt 0:00:00]} 37. Qd3 {[%emt 0:01:25]} Kg8 {[%emt 0:00:00] Against Qh7+. Not much happened in this game.   Weighted Error Value: White=0.05 (flawless) /Black=0.05 (flawless)} 1/2-1/2